Cogmind - Beta 13 @@@ ROGUE MODE // 2024.04.16 @ 00:58:01 Player: Patryk Z Result: Destroyed by S-43 Plague with Heavy Machine Gun Performance ------------- Evolutions (8) 4000 Regions Visited (13) 2600 Robots Destroyed (138) 690 Value Destroyed (6260) 6260 Prototype IDs (8) 160 Alien Tech Used (0) 0 Bonus (1147) 1147 TOTAL SCORE: 14857 Bonus ------- High Alert Combat Kills 265 Follower Combat Kills 82 Entered DSFs 500 Met Imprinter 300 Cogmind --------- Core Integrity 0/1450 Matter 96/300 Energy 100/100 System Corruption 3% Temperature Cool (0) Movement Core (100) Ox1 Location -2/Research Parts ------- > --- POWER (2) -------- (None) > --- PROPULSION (5) --- (None) > --- UTILITY (10) ----- Advanced Targeting Computer Hacking Suite > --- WEAPON (6) ------- Phasing Sabre > --- INVENTORY (5) ---- (None) Peak State ------------ > --- POWER ------------ Reinforced Fission Core > --- PROPULSION ------- Armored Medium Treads Armored Medium Treads Armored Medium Treads Armored Medium Treads Advanced Medium Treads > --- UTILITY ---------- Improved Cooling System Improved Coolant Injector Huge Storage Unit Improved Signal Interpreter Targeting Computer Advanced Targeting Computer Improved Phase Shifter Heavy Armor Plating Experimental Field Recycling Unit > --- WEAPON ----------- Gamma Rifle Gamma Rifle KE Penetrator KE Penetrator KE Penetrator > --- INVENTORY -------- Improved Ion Engine Armored Treads Advanced Treads Medium Treads Medium Treads Heavy Treads Advanced Medium Treads Armored Huge Wheel Advanced Heat Sink Coolant Injector Hardened Medium Armor Plating Layered Light Armor Plating Heavy Laser Heavy Laser Plasma Rifle Plasma Rifle Beamcaster Heavy Machine Gun KE Penetrator KE Penetrator Rocket Array Long-range Missile Launcher Phasing Sabre [Rating: 121] Favorites ----------- Power Light Angular Momentum Engine Engine Light Angular Momentum Engine Power Core Reinforced Fission Core Propulsion Armored Huge Wheel Treads Armored Medium Treads Leg Aluminum Leg Wheel Armored Huge Wheel Flight Unit Xenon Bombardment Thruster Utility Advanced Heat Sink Device Advanced Heat Sink Storage Huge Storage Unit Processor Improved Signal Interpreter Hackware Hacking Suite Protection Layered Medium Armor Plating Weapon KE Penetrator Energy Gun Heavy Laser Ballistic Gun KE Penetrator Ballistic Cannon Light Cannon Launcher Rocket Array Slashing Weapon Phasing Sabre Build | -11 -10 -10 -8 -7 -6 -6 -6 -5 -5 -5 -4 -3 -2 ------- Run | Yrd Mat Sub Mat Fac Fac Low Zio Pro Fac DSF Fac Res Res Slots Evolved 16 | . . . 4 2 2 . . . 2 . 2 2 2 Power 1 | . . . . . . . . . . . . . 1 Propulsion 3 | . . . . . 2 . . . . . 1 . . Utility 8 | . . . 2 2 . . . . 2 . 1 1 . Weapon 4 | . . . 2 . . . . . . . . 1 1 Parts Attached 166 | 6 2 7 20 10 17 3 18 7 7 12 6 46 5 Power 11 | 1 . . 2 . 2 . . 1 1 2 . 2 . Engine 9 | 1 . . 2 . 2 . . 1 1 1 . 1 . Core 2 | . . . . . . . . . . 1 . 1 . Reactor . | . . . . . . . . . . . . . . Propulsion 29 | 2 . 1 3 . 2 1 . . . 5 1 12 2 Treads 20 | . . 1 2 . . . . . . 5 1 11 . Leg 2 | 2 . . . . . . . . . . . . . Wheel 5 | . . . 1 . 2 1 . . . . . 1 . Hover . | . . . . . . . . . . . . . . Flight 2 | . . . . . . . . . . . . . 2 Utility 60 | 1 . 2 7 6 6 1 6 4 6 . 5 15 1 Device 27 | . . 1 3 1 2 . 4 3 3 . 2 8 . Storage 2 | 1 . . 1 . . . . . . . . . . Processor 6 | . . . 2 1 1 . . 1 . . 1 . . Hackware 1 | . . . . . . . . . . . . . 1 Protection 24 | . . 1 1 4 3 1 2 . 3 . 2 7 . Artifact . | . . . . . . . . . . . . . . Weapon 66 | 2 2 4 8 4 7 1 12 2 . 5 . 17 2 Energy Gun 30 | 2 1 1 2 1 5 . 4 2 . 2 . 10 . Energy Cannon . | . . . . . . . . . . . . . . Ballistic Gun 26 | . . 3 6 2 2 1 4 . . 3 . 5 . Ballistic Cannon 1 | . 1 . . . . . . . . . . . . Launcher 4 | . . . . 1 . . 1 . . . . 2 . Special Weapon . | . . . . . . . . . . . . . . Impact Weapon . | . . . . . . . . . . . . . . Slashing Weapon 5 | . . . . . . . 3 . . . . . 2 Piercing Weapon . | . . . . . . . . . . . . . . Special Melee Weapon . | . . . . . . . . . . . . . . Unidentified Prototypes 8 | . . . 2 1 . . 4 . . . . 1 . Parts Lost 69 | . . 3 3 . 8 3 . 4 . 3 3 37 5 Power 6 | . . . 1 . 2 . . 1 . . . 2 . Propulsion 15 | . . 1 . . . 1 . . . . . 11 2 Utility 23 | . . . 1 . 3 1 . 3 . . 3 9 3 Weapon 25 | . . 2 1 . 3 1 . . . 3 . 15 . Highest Loss Streak 34 | . . 3 3 . 3 2 . 3 . 2 1 34 3 To Critical Strikes 2 | . . . . . . . . . . . . 2 . Average Slot Usage (%) 88 | . 73 98 94 91 85 85 85 86 88 93 100 94 14 Engine 5 | . 14 14 8 7 6 6 6 6 5 2 . . . Treads 7 | . . 13 15 . . . . . . 10 26 21 . Leg 2 | . 28 14 . . . . . . . . . . . Wheel 6 | . . . 1 7 13 12 13 13 11 5 . . . Device 13 | . . 4 16 21 13 13 13 13 17 17 18 14 5 Storage 6 | . 14 14 9 7 6 6 6 6 5 5 5 3 . Processor 8 | . . . . . 8 13 13 13 11 11 10 14 6 Protection 8 | . . 8 6 16 10 5 5 6 11 11 11 10 . Energy Gun 9 | . 15 1 6 15 13 13 9 13 11 11 10 8 . Ballistic Gun 15 | . . 26 29 14 13 13 12 13 11 10 10 13 . Naked Turns . | . . . . . . . . . . . . . . Heaviest Build 159 | 14 14 17 106 116 116 113 116 120 132 142 146 159 4 Greatest Support 138 | 20 20 20 40 28 56 56 56 56 56 101 129 138 12 Greatest Overweight (x) 4 | 2 . . 3 4 2 4 2 2 2 4 1 3 1 Average Overweight (x) 1 | . . . . 3 1 1 1 2 2 1 1 . . Largest Inventory Capacity 25 | 8 8 8 25 25 25 25 25 25 25 25 25 25 5 Average Capacity 21 | 6 8 8 14 25 25 25 25 25 25 25 25 24 5 Most Carried 25 | 6 8 8 23 25 25 25 25 25 25 25 24 25 1 Average Carried 19 | 4 7 7 9 24 24 23 24 23 23 23 22 22 . Final Capacity 25 | 8 8 8 25 25 25 25 25 25 25 25 25 5 5 Final Carried 25 | 6 8 8 23 24 25 21 25 23 25 25 24 1 . Class Distribution -------------------- 36% | Gunner 21% | Scavenger-Tank 20% | Scavenger-Gunner 16% | Mutant 5% | Tank Dominant Class ---------------- Mutant | -10/Materials Mutant | -10/Subcaves Scavenger-Tank | -8/Materials Gunner | -7/Factory Gunner | -6/Factory Gunner | -6/Lower Caves Gunner | -6/Zion Scavenger-Gunner | -5/Proximity Caves Gunner | -5/Factory Scavenger-Gunner | -5/DSF Scavenger-Gunner | -4/Factory Scavenger-Tank | -3/Research Mutant | -2/Research Resources | -11 -10 -10 -8 -7 -6 -6 -6 -5 -5 -5 -4 -3 -2 ----------- Run | Yrd Mat Sub Mat Fac Fac Low Zio Pro Fac DSF Fac Res Res Matter Collected 4068 | 260 52 157 495 361 558 271 75 382 . 332 139 936 50 Remotely . | . . . . . . . . . . . . . . Salvage Created 6837 | . 79 234 687 734 1143 310 . 510 . 351 590 2159 40 Parts 325 | . 1 14 39 38 68 8 . 14 . 24 13 102 4 Haulers Intercepted 5 | . . . . 2 1 . . . . . . 2 . Recyclers Shooed 3 | . . . 2 . . . . . . . . 1 . Parts Field Recycled . | . . . . . . . . . . . . . . Retrieved Matter . | . . . . . . . . . . . . . . Parts Self-Destructed 31 | . . 4 . . . 11 . 16 . . . . . Prevented . | . . . . . . . . . . . . . . Kills | -11 -10 -10 -8 -7 -6 -6 -6 -5 -5 -5 -4 -3 -2 ------- Run | Yrd Mat Sub Mat Fac Fac Low Zio Pro Fac DSF Fac Res Res Combat Hostiles Destroyed 113 | . 2 5 12 11 21 7 . 10 . 8 4 33 . Guns 102 | . 1 4 12 11 21 6 . 9 . 8 4 26 . AOE 6 | . 1 . . . . . . . . . . 5 . Classes Destroyed 19 | . 1 2 3 3 4 1 . 1 . 2 . 2 . Worker 5 | . . . . 1 2 . . . . . . 2 . Builder 4 | . . . . . 1 . . . . . . 1 2 Hauler 5 | . . . . 2 1 . . . . . . 2 . Recycler 5 | . . . 2 . . . . . . . 2 1 . Drone 1 | . . . . . . . . 1 . . . . . Watcher 6 | . . . 2 2 . . . . . . . 2 . Swarmer 26 | . . . 4 . 7 6 . . . 4 . 5 . Grunt 35 | . 2 1 3 9 5 . . 4 . . 4 7 . Brawler 3 | . . . . . 1 . . 2 . . . . . Duelist 3 | . . . . 1 . . . 2 . . . . . Protector 1 | . . . . . . . . . . . . 1 . Sentry 13 | . . 1 5 1 1 1 . 1 . 1 . 2 . Specialist 3 | . . . . . . . . . . 1 . 2 . Hunter 6 | . . . . . 2 . . . . 1 . 3 . Programmer 16 | . . . . . 5 . . . . . . 11 . Heavy 1 | . . . . . . . . . . 1 . . . Striker 2 | . . . . . . . . . . . . 2 . Subdweller 3 | . . 3 . . . . . . . . . . . Packrat 1 | . . . . . . 1 . . . . . . . Samaritan 1 | . . . . . . 1 . . . . . . . Best Kill Streak 11 | . 1 2 8 4 5 4 . 7 . 7 4 11 2 Combat Bots Only 10 | . 1 2 8 4 5 4 . 7 . 7 4 10 . Max Kills in Single Turn 5 | . 1 1 1 1 2 1 . 2 . 1 1 5 1 Gunslinging 1 | . . . . . . . . 1 . . . . . Exploded 3 | . 1 . . . . . . . . . . 3 . Melee . | . . . . . . . . . . . . . . Uniques/NPCs Destroyed . | . . . . . . . . . . . . . . Combat | -11 -10 -10 -8 -7 -6 -6 -6 -5 -5 -5 -4 -3 -2 -------- Run | Yrd Mat Sub Mat Fac Fac Low Zio Pro Fac DSF Fac Res Res Hostile Shots Fired 1187 | . 20 40 44 47 143 75 . 66 . 65 28 522 137 Missed 357 | . 7 10 11 11 33 30 . 17 . 18 6 153 61 Damage Taken 16681 | . 199 610 450 420 1631 390 . 1138 . 1097 668 8359 1719 Core 3391 | . 15 209 40 39 193 51 . 189 . 133 43 1013 1466 Absorbed by Shields . | . . . . . . . . . . . . . . Redirected to Shielding 184 | . . . . 47 137 . . . . . . . . Regen/Repaired (Parts) 565 | . . . . . . . 565 . . . . . . Core Remaining (%) 68 | 100 . 10 92 94 . . . 49 . 86 96 22 . Volleys Fired 309 | . 15 21 38 28 64 19 1 21 . 16 13 73 . Largest 5 | . 2 2 4 4 4 4 3 4 . 4 4 5 . Hottest 318 | . 75 80 157 185 193 188 119 216 . 216 210 318 . Shots Fired 1153 | . 28 42 142 110 252 71 3 71 . 63 52 319 . Gun 1137 | . 15 42 142 110 252 71 3 71 . 63 52 316 . Cannon 13 | . 13 . . . . . . . . . . . . Launcher 3 | . . . . . . . . . . . . 3 . Special . | . . . . . . . . . . . . . . Kinetic 694 | . 13 32 135 56 127 32 2 42 . 31 26 198 . Thermal 311 | . . . 7 54 77 39 1 29 . 26 26 52 . Explosive 3 | . . . . . . . . . . . . 3 . Electromagnetic 145 | . 15 10 . . 48 . . . . 6 . 66 . Robot Hit Streak 33 | . 5 27 33 13 18 19 . 12 . 13 13 21 . Robot Miss Streak 9 | . 4 1 6 3 4 6 . 9 . 6 1 3 . Penetration Max 1 | . . . . . 1 . . . . . . 1 . Secondary Targets 15 | . . . . . . 2 . 4 . 3 . 6 . Max Gunslinging Chain 1 | . . . . . . 1 . 1 . 1 . 1 . Shots Hit Robots 797 | . 17 37 90 65 174 40 . 57 . 45 39 231 2 Core Hits 395 | . 4 10 30 38 61 13 . 53 . 33 14 137 2 Critical Kills 6 | . . . 1 . . . . . . . 2 3 . Critical Parts Destroyed 8 | . . . . . 1 . . . . . . 7 . Critical Strikes 27 | . 1 . 1 1 2 1 . 2 . 2 4 13 . Burn 12 | . . . . 1 1 1 . 2 . 2 2 3 . Destroy 14 | . . . 1 . 1 . . . . . 2 10 . Blast 1 | . 1 . . . . . . . . . . . . Melee Attacks 53 | . . . . . . . 51 . . . . . 2 Impact . | . . . . . . . . . . . . . . Slashing 53 | . . . . . . . 51 . . . . . 2 Piercing . | . . . . . . . . . . . . . . Sneak Attacks 2 | . . . . . . . . . . . . . 2 Combat Hostiles . | . . . . . . . . . . . . . . Follow-up Attacks . | . . . . . . . . . . . . . . Damage Inflicted 17951 | . 290 416 1216 1317 3138 724 . 1135 . 855 875 7834 151 Guns 15613 | . 116 416 1186 1317 3123 724 . 1135 . 855 875 5866 . Cannons 135 | . 135 . . . . . . . . . . . . Explosions 2007 | . 39 . . . . . . . . . . 1968 . Melee 151 | . . . . . . . . . . . . . 151 Ramming 45 | . . . 30 . 15 . . . . . . . . Kinetic 9058 | . 135 310 1089 406 1294 253 . 736 . 463 391 3981 . Thermal 4878 | . 39 . 97 911 1229 471 . 399 . 303 484 945 . Explosive 1876 | . . . . . . . . . . . . 1876 . Electromagnetic 1943 | . 116 106 . . 600 . . . . 89 . 1032 . Impact . | . . . . . . . . . . . . . . Slashing 151 | . . . . . . . . . . . . . 151 Piercing . | . . . . . . . . . . . . . . Highest Corruption 21 | . . . 2 2 5 5 5 3 . 1 . 21 3 Average Corruption 4 | . . . 2 2 4 5 5 2 . 1 . 6 2 Corruption Purged . | . . . . . . . . . . . . . . Corruption Blocked . | . . . . . . . . . . . . . . Effects 72 | . . . 1 4 21 10 2 4 . 2 . 27 1 Message Errors 16 | . . . . . 6 5 . . . . . 5 . Matter Fused 15 | . . . 1 3 2 2 1 1 . 1 . 4 . Heat Flow Errors 9 | . . . . . 3 1 . 2 . . . 3 . Energy Discharges 4 | . . . . 1 2 . . . . . . 1 . Parts Rejected 2 | . . . . . 1 . . . . . . 1 . Data Loss (minor) 14 | . . . . . 4 1 1 1 . . . 6 1 Data Loss (major) 4 | . . . . . 2 . . . . . . 2 . Misfires 2 | . . . . . . 1 . . . . . 1 . Misdirections 1 | . . . . . . . . . . . . 1 . Weapon Failures 5 | . . . . . 1 . . . . 1 . 3 . Overload Shots . | . . . . . . . . . . . . . . Overflow Damage 5 | . . . . . . . . . . . . 5 . Projectiles . | . . . . . . . . . . . . . . Explosions 5 | . . . . . . . . . . . . 5 . Melee . | . . . . . . . . . . . . . . Knockbacks 4 | . 4 . . . . . . . . . . . . Impact . | . . . . . . . . . . . . . . Kinetic 4 | . 4 . . . . . . . . . . . . Secondary . | . . . . . . . . . . . . . . Self-Inflicted Damage 365 | . 23 . . . 7 . . . . . . 335 . Shots 9 | . 1 . . . . . . . . . . 8 . Rammed 2 | . . . 1 . 1 . . . . . . . . Targets Rammed 3 | . . . 2 . 1 . . . . . . . . Kicked . | . . . . . . . . . . . . . . Crushed 1 | . . . 1 . . . . . . . . . . Highest Temperature 629 | . 312 . 300 389 237 145 . 315 . 189 196 629 . Average Temperature 113 | . 150 . 149 115 41 27 . 122 . 91 113 116 . Received Heat Transfer 2202 | . 135 192 207 171 159 66 . 702 . . 111 459 . Effects 7 | . . . 2 . 1 . . . . . . 4 . Shutdowns 1 | . . . . . . . . . . . . 1 . Energy Bleed 2 | . . . 2 . . . . . . . . . . Interference 1 | . . . . . 1 . . . . . . . . Damage (minor) 1 | . . . . . . . . . . . . 1 . Damage (major) 2 | . . . . . . . . . . . . 2 . Siege Activations . | . . . . . . . . . . . . . . Robots Corrupted 3 | . . 1 . . . . . . . . . 2 . Combat Hostiles 3 | . . 1 . . . . . . . . . 2 . Parts Fried 4 | . . 1 . . . . . . . . . 3 . Impact Corruptions . | . . . . . . . . . . . . . . Robots Melted 2 | . . . . . . 1 . 1 . . . . . Combat Hostiles 2 | . . . . . . 1 . 1 . . . . . Parts Melted 16 | . . 1 . 4 5 2 . . . . 2 2 . Heat Transferred 10191 | . 50 . 222 1849 2545 999 . 942 . 703 1036 1845 . Parts Sabotaged 1 | . . . . . . . . . . . . 1 . Parts Stolen . | . . . . . . . . . . . . . . Parts Stripped . | . . . . . . . . . . . . . . Power Chain Reactions 2 | . 1 . . . . . . . . . . 1 . Alert | -11 -10 -10 -8 -7 -6 -6 -6 -5 -5 -5 -4 -3 -2 ------- Run | Yrd Mat Sub Mat Fac Fac Low Zio Pro Fac DSF Fac Res Res Peak Influence 967 | . 72 . 236 494 309 . . . 967 822 516 382 358 Initial 967 | . . . . 22 178 . . . 967 676 431 197 203 Average 233 | . 56 . 104 234 179 . . . 967 758 410 200 226 Maximum Alert Level 3 | . . . 1 2 1 . . . 3 3 2 1 1 Low Security (%) 50 | 100 100 . 87 41 65 . . . . . . 43 . Level 1 35 | . . . 12 31 34 . . . . . 35 56 100 Level 2 8 | . . . . 26 . . . . . 28 64 . . Level 3 5 | . . . . . . . . . 100 71 . . . Level 4 . | . . . . . . . . . . . . . . Level 5 . | . . . . . . . . . . . . . . High Security . | . . . . . . . . . . . . . . Max Security . | . . . . . . . . . . . . . . Sterilizations 1 | . . . . . . . . . . 1 . . . Squads Dispatched 32 | . . . 2 3 9 . . 1 . 1 . 14 2 Investigation 3 | . . . . 2 . . . . . . . 1 . Extermination 9 | . . . . . 3 . . . . . . 5 1 Reinforcement 9 | . . . 1 1 3 . . . . 1 . 2 1 Assault 1 | . . . . . . . . 1 . . . . . Garrison 10 | . . . 1 . 3 . . . . . . 6 . Intercept . | . . . . . . . . . . . . . . Searches Triggered 1 | . . . . . . . . . . . 1 . . Construction Impeded . | . . . . . . . . . . . . . . Haulers Reinforced 3 | . . . . 1 1 . . . . . . 1 . Active Scanning Responses . | . . . . . . . . . . . . . . Cargo Convoy Interrupts 1 | . . . . . . . . . . . . 1 . Stealth | -11 -10 -10 -8 -7 -6 -6 -6 -5 -5 -5 -4 -3 -2 --------- Run | Yrd Mat Sub Mat Fac Fac Low Zio Pro Fac DSF Fac Res Res Distress Signals 4 | . . . . . 1 . . 1 . . . 1 1 Communications Jammed . | . . . . . . . . . . . . . . Distress Signals . | . . . . . . . . . . . . . . Times Spotted 187 | . 3 7 17 14 27 8 . 18 . 9 4 59 21 Peak Tracking Total 15 | . 2 2 5 4 4 4 . 9 . 4 4 15 12 Tactical Retreats 16 | . 1 . . . 2 1 . 3 . 1 . 4 4 Traps | -11 -10 -10 -8 -7 -6 -6 -6 -5 -5 -5 -4 -3 -2 ------- Run | Yrd Mat Sub Mat Fac Fac Low Zio Pro Fac DSF Fac Res Res Traps Triggered 4 | . . . . 1 . . . . 2 . 1 . . Indirectly . | . . . . . . . . . . . . . . Trap Hack Attempts . | . . . . . . . . . . . . . . Triggered . | . . . . . . . . . . . . . . Disarmed . | . . . . . . . . . . . . . . Reprogrammed . | . . . . . . . . . . . . . . Reused . | . . . . . . . . . . . . . . Traps Extracted . | . . . . . . . . . . . . . . Installed . | . . . . . . . . . . . . . . Triggered . | . . . . . . . . . . . . . . Machines | -11 -10 -10 -8 -7 -6 -6 -6 -5 -5 -5 -4 -3 -2 ---------- Run | Yrd Mat Sub Mat Fac Fac Low Zio Pro Fac DSF Fac Res Res Machines Disabled 2 | . . . . . 1 . . . . . 1 . . Max in Single Turn 1 | . . . . . 1 . . . . . 1 . . Garrison Access 3 | . . . . 2 . . . . . . . 1 . Machines Repaired . | . . . . . . . . . . . . . . Machines Dismantled . | . . . . . . . . . . . . . . Machines Sabotaged . | . . . . . . . . . . . . . . Overloaded Fab Kills . | . . . . . . . . . . . . . . Hacking | -11 -10 -10 -8 -7 -6 -6 -6 -5 -5 -5 -4 -3 -2 --------- Run | Yrd Mat Sub Mat Fac Fac Low Zio Pro Fac DSF Fac Res Res Machines Accessed 12 | . . 1 . 3 2 . . . 1 . 1 4 . Terminals 7 | . . . . 1 2 . . . 1 . 1 2 . Fabricators . | . . . . . . . . . . . . . . Repair Stations . | . . . . . . . . . . . . . . Recycling Units . | . . . . . . . . . . . . . . Scanalyzers . | . . . . . . . . . . . . . . Garrison Access 4 | . . . . 2 . . . . . . . 2 . Total Hacks 15 | . . 1 . 3 3 . . . 1 . 1 6 . Successful 6 | . . 1 . 2 . . . . 1 . . 2 . Failed 9 | . . . . 1 3 . . . . . 1 4 . Catastrophic 5 | . . . . 1 1 . . . . . 1 2 . Database Lockouts . | . . . . . . . . . . . . . . Manual 10 | . . . . 3 . . 1 . . . . 6 . Terminals 9 | . . . . 1 3 . . . 1 . 1 3 . Fabricators . | . . . . . . . . . . . . . . Repair Stations . | . . . . . . . . . . . . . . Recycling Units . | . . . . . . . . . . . . . . Scanalyzers . | . . . . . . . . . . . . . . Garrison Access 5 | . . . . 2 . . . . . . . 3 . Terminal Hacks 3 | . . 1 . . . . . . 1 . . 1 . Record 1 | . . 1 . . . . . . . . . . . Open DSF 1 | . . . . . . . . . 1 . . . . Unreport Threat 1 | . . . . . . . . . . . . 1 . Fabricator Hacks . | . . . . . . . . . . . . . . Repair Station Hacks . | . . . . . . . . . . . . . . Recycling Unit Hacks . | . . . . . . . . . . . . . . Scanalyzer . | . . . . . . . . . . . . . . Garrison Access Hacks . | . . . . . . . . . . . . . . Unauthorized Hacks 3 | . . . . 2 . . . . . . . 1 . Terminals . | . . . . . . . . . . . . . . Fabricators . | . . . . . . . . . . . . . . Repair Stations . | . . . . . . . . . . . . . . Recycling Units . | . . . . . . . . . . . . . . Scanalyzers . | . . . . . . . . . . . . . . Garrison Access 3 | . . . . 2 . . . . . . . 1 . Jam 3 | . . . . 2 . . . . . . . 1 . Data Cores Recovered . | . . . . . . . . . . . . . . Used . | . . . . . . . . . . . . . . Hacking Detections 6 | . . . . 1 2 . . . . . 1 2 . Full Trace Events . | . . . . . . . . . . . . . . Feedback Events . | . . . . . . . . . . . . . . Feedback Blocked . | . . . . . . . . . . . . . . Robot Schematics Acquired 3 | . . . . . . . 3 . . . . . . Robots Built . | . . . . . . . . . . . . . . Authchips . | . . . . . . . . . . . . . . Time . | . . . . . . . . . . . . . . Total Robot Build Rating . | . . . . . . . . . . . . . . Part Schematics Acquired 15 | . . . . . . . 15 . . . . . . Parts Built . | . . . . . . . . . . . . . . Authchips . | . . . . . . . . . . . . . . Time . | . . . . . . . . . . . . . . Total Part Build Rating . | . . . . . . . . . . . . . . Parts Repaired . | . . . . . . . . . . . . . . Time . | . . . . . . . . . . . . . . Parts Recycled . | . . . . . . . . . . . . . . Recycled Matter . | . . . . . . . . . . . . . . Retrieved Matter . | . . . . . . . . . . . . . . Retrieved Components . | . . . . . . . . . . . . . . Parts Scanalyzed . | . . . . . . . . . . . . . . Part Schematics Acquired . | . . . . . . . . . . . . . . Parts Damaged . | . . . . . . . . . . . . . . Bothacking | -11 -10 -10 -8 -7 -6 -6 -6 -5 -5 -5 -4 -3 -2 ------------ Run | Yrd Mat Sub Mat Fac Fac Low Zio Pro Fac DSF Fac Res Res Used RIF Installer . | . . . . . . . . . . . . . . Robots Hacked . | . . . . . . . . . . . . . . Non-combat . | . . . . . . . . . . . . . . Combat . | . . . . . . . . . . . . . . Robot Hacks Applied . | . . . . . . . . . . . . . . Relay Couplers Released . | . . . . . . . . . . . . . . Fabnet Peak Effective % . | . . . . . . . . . . . . . . Robots Rewired 3 | . . . . 1 . . . 2 . . . . . Allies Hacked . | . . . . . . . . . . . . . . Hacks Repelled . | . . . . . . . . . . . . . . Allies | -11 -10 -10 -8 -7 -6 -6 -6 -5 -5 -5 -4 -3 -2 -------- Run | Yrd Mat Sub Mat Fac Fac Low Zio Pro Fac DSF Fac Res Res Total Allies 3 | . . . . 1 . . . 2 . . . . . Largest Group 2 | . . . . 1 . . . 2 1 1 . . . Highest-Rated Group 58 | . . . . 16 . . . 58 29 29 . . . Highest-Rated Ally 29 | . . . . 16 . . . 29 29 29 . . . Total Orders . | . . . . . . . . . . . . . . Ally Attacks 25 | . . . . 2 . . . 20 . 3 . . . Total Damage 431 | . . . . 30 . . . 344 . 57 . . . Kills 3 | . . . . . . . . 3 . . . . . Allies Corrupted . | . . . . . . . . . . . . . . Allies Melted . | . . . . . . . . . . . . . . Intel | -11 -10 -10 -8 -7 -6 -6 -6 -5 -5 -5 -4 -3 -2 ------- Run | Yrd Mat Sub Mat Fac Fac Low Zio Pro Fac DSF Fac Res Res Robot Analysis Total . | . . . . . . . . . . . . . . Derelict Logs Recovered 2 | . . . . . . 1 . 1 . . . . . Drone Launches . | . . . . . . . . . . . . . . Drone Recoveries . | . . . . . . . . . . . . . . Exploration | -11 -10 -10 -8 -7 -6 -6 -6 -5 -5 -5 -4 -3 -2 ------------- Run | Yrd Mat Sub Mat Fac Fac Low Zio Pro Fac DSF Fac Res Res Turns Passed 10809 | 54 354 994 1006 862 1417 335 2166 647 207 241 386 1849 291 Spaces Moved 5940 | 40 60 542 427 436 897 206 1496 415 135 71 134 717 364 Core 479 | 15 . . . . . . . . . . . 125 339 Treads 1626 | . . 532 345 . . . . . . 36 134 579 . Legs 95 | 25 60 10 . . . . . . . . . . . Wheels 3715 | . . . 82 436 897 206 1496 415 135 35 . 13 . Hover . | . . . . . . . . . . . . . . Flight 25 | . . . . . . . . . . . . . 25 Fastest Speed 37 | 50 120 120 145 145 115 115 115 130 130 130 248 50 37 Average Speed 144 | 98 120 159 182 155 119 127 129 130 130 192 248 209 50 Slowest Speed 320 | 150 120 160 320 160 130 160 130 130 130 250 248 248 100 Overloaded Moves . | . . . . . . . . . . . . . . Propulsion Burnouts . | . . . . . . . . . . . . . . Robots Hopped 1 | . . . . . . . . . . . . . 1 Cave-ins Triggered . | . . . . . . . . . . . . . . Exploration Rate (%) 29 | 4 14 48 41 15 22 36 86 66 5 42 6 20 9 Regions Visited 13 Branch Regions 4 Pre-discovered Areas 1 | . . . . . . . 1 . . . . . . Known Exits Taken 8 | . . . . 1 1 1 1 1 1 . 1 1 . Unknown Exits Taken 4 | 1 1 1 1 . . . . . . . . . . Scrap Searched 7 | . . . . . . . 5 2 . . . . . Spaces Dug 2 | . . . . . . . 2 . . . . . . Terrain Destroyed 43 | . 6 . . . 4 . 2 . . . 5 26 . Melee 2 | . . . . . . . 2 . . . . . . Projectile 10 | . . . . . 2 . . . . . 5 3 . AOE 28 | . 6 . . . . . . . . . . 22 . Terrain Rammed . | . . . . . . . . . . . . . . Walls Destroyed . | . . . . . . . . . . . . . . Machines Disabled . | . . . . . . . . . . . . . . Actions | -11 -10 -10 -8 -7 -6 -6 -6 -5 -5 -5 -4 -3 -2 --------- Run | Yrd Mat Sub Mat Fac Fac Low Zio Pro Fac DSF Fac Res Res Total 7406 | 51 315 633 571 571 1107 239 1639 474 168 142 156 874 466 Wait 702 | . 235 59 46 58 101 12 52 7 . 27 . 10 95 Move 5925 | 39 59 541 426 435 896 205 1495 414 134 70 133 716 362 Hop 1 | . . . . . . . . . . . . . 1 Pick Up 93 | 6 1 3 21 16 16 . 5 3 3 7 3 9 . Fast Attach 62 | 6 1 2 10 2 5 . 13 2 4 3 1 10 3 Attach 70 | . 1 4 4 3 9 3 . 5 2 5 5 27 2 Detach 21 | . 2 1 2 2 1 . 2 2 3 1 1 3 1 Swap 34 | . . 1 6 5 3 . 5 . 1 4 . 9 . Drop 92 | . 1 1 16 16 11 . 15 2 5 9 . 16 . Fire 309 | . 15 21 38 28 64 19 1 21 . 16 13 73 . Melee 53 | . . . . . . . 51 . . . . . 2 Ram 2 | . . . . . 1 . . . . . . 1 . Kick . | . . . . . . . . . . . . . . Crush 2 | . . . 2 . . . . . . . . . . Escape Stasis 16 | . . . . . . . . . 16 . . . . Rewire 24 | . . . . 6 . . . 18 . . . . . Trap . | . . . . . . . . . . . . . . Miscellaneous . | . . . . . . . . . . . . . . Route ------- -11/Scrapyard -10/Materials -10/Subcaves -8/Materials -7/Factory -6/Factory -6/Lower Caves -6/Zion -5/Proximity Caves -5/Factory -5/DSF -4/Factory -3/Research -2/Research History --------- Turn | Location | Event 10 | -11/Scrapyard | Discovered new exit (range 15) 55 | -11/Scrapyard | Entered Materials 300 | -10/Materials | Build established: Mutant 391 | -10/Materials | Discovered new exit (range 6) 409 | -10/Materials | Entered Subcaves 455 | -10/Subcaves | Core integrity fell below 50% 489 | -10/Subcaves | Lost 3 parts (1n2w) 857 | -10/Subcaves | Core integrity fell below 20% 1336 | -10/Subcaves | Visited Clippyterm 1361 | -10/Subcaves | Discovered new exit (range 7) 1403 | -10/Subcaves | Entered Materials 1403 | -8/Materials | Evolved 4 slots: Utility x2, Weapon x2 1522 | -8/Materials | Destroyed 8 combat bots 1526 | -8/Materials | Lost 3 parts (1p1u1w) 2046 | -8/Materials | Build established: Scavenger-Tank 2269 | -8/Materials | Garrison activated, responded to threat 2370 | -8/Materials | Discovered new exit (range 16) 2409 | -8/Materials | Entered Factory 2409 | -7/Factory | Evolved 2 slots: Utility x2 2897 | -7/Factory | Build established: Gunner 3199 | -7/Factory | Discovered new exit (range 14) 3271 | -7/Factory | Identified exit to Factory 3271 | -7/Factory | Entered another Factory area 3271 | -6/Factory | Evolved 2 slots: Propulsion x2 3586 | -6/Factory | Build established: Tank 3724 | -6/Factory | Spotted B-75 Beast 3978 | -6/Factory | Build established: Scavenger-Tank 4072 | -6/Factory | Garrison activated, responded to threat 4114 | -6/Factory | Lost 3 parts (2u1w) 4424 | -6/Factory | Build established: Gunner 4677 | -6/Factory | Discovered new exit (range 3) 4683 | -6/Factory | Identified exit to Lower Caves 4688 | -6/Factory | Entered Lower Caves 4787 | -6/Lower Caves | Attracted the attention of an 0b10 checkpoint 4830 | -6/Lower Caves | Learned Factory stockpile data 5009 | -6/Lower Caves | A Derelict revealed a hidden shortcut to a safe place 5020 | -6/Lower Caves | Identified exit to Zion 5023 | -6/Lower Caves | Entered Zion 5085 | -6/Zion | System corruption cleaned by Quarantine Array 5178 | -6/Zion | Received a visual enhancement algorithm 5657 | -6/Zion | Learned location of Quarantine (-2) 5707 | -6/Zion | Found Prototype Device 5707 | -6/Zion | Identified Phasing AFG 5852 | -6/Zion | Given A8's code to call for help 6237 | -6/Zion | Found Prototype Energy Gun 6237 | -6/Zion | Identified Storm Laser 6570 | -6/Zion | Found Prototype Launcher 6570 | -6/Zion | Identified Rocket Array 6988 | -6/Zion | Given the Hacking Drone Bay 6988 | -6/Zion | Found Prototype Device 6988 | -6/Zion | Identified Hacking Drone Bay 7033 | -6/Zion | Discovered new exit (range 16) 7115 | -6/Zion | Visited the Megawrench Repair Shop 7115 | -6/Zion | Megawrench repaired 10 parts 7187 | -6/Zion | Identified exit to Proximity Caves 7189 | -6/Zion | Entered Proximity Caves 7300 | -5/Proximity Caves | Spotter reported a threat 7330 | -5/Proximity Caves | Spotted B-75 Beast 7464 | -5/Proximity Caves | Build established: Scavenger-Gunner 7472 | -5/Proximity Caves | Learned Factory terminal intel 7482 | -5/Proximity Caves | Attracted the attention of an 0b10 outpost 7488 | -5/Proximity Caves | Spotter reported a threat 7541 | -5/Proximity Caves | Spotter reported a threat 7546 | -5/Proximity Caves | Lost 3 parts (3u) 7553 | -5/Proximity Caves | Destroyed 7 combat bots 7601 | -5/Proximity Caves | Spotter reported a threat 7618 | -5/Proximity Caves | Core integrity fell below 50% 7654 | -5/Proximity Caves | Spotter reported a threat 7707 | -5/Proximity Caves | Spotter reported a threat 7760 | -5/Proximity Caves | Spotter reported a threat 7773 | -5/Proximity Caves | Spotter reported a threat 7818 | -5/Proximity Caves | Discovered new exit (range 11) 7835 | -5/Proximity Caves | Identified exit to Factory 7836 | -5/Proximity Caves | Entered Factory 7836 | -5/Factory | Accompanied by 1 ally 7836 | -5/Factory | Evolved 2 slots: Utility x2 7838 | -5/Factory | Loaded intel: 28 terminal locations 7886 | -5/Factory | Found Imp. Powered Armor 8042 | -5/Factory | Identified exit to DSF 8043 | -5/Factory | Entered DSF 8043 | -5/DSF | Accompanied by 1 ally 8085 | -5/DSF | Additional patrols routed to DSF 8193 | -5/DSF | Destroyed 7 combat bots 8236 | -5/DSF | Discovered new exit (range 16) 8240 | -5/DSF | Sterilization system engaged 8260 | -5/DSF | Ambient heat levels rising (+10) 8274 | -5/DSF | Identified exit to Factory 8275 | -5/DSF | Ambient heat levels rising (+10) 8284 | -5/DSF | Entered Factory 8284 | -4/Factory | Evolved 2 slots: Propulsion x1, Utility x1 8534 | -4/Factory | Search patrols dispatched 8640 | -4/Factory | Discovered new exit (range 12) 8667 | -4/Factory | Identified exit to Research 8670 | -4/Factory | Entered Research 8670 | -3/Research | Evolved 2 slots: Utility x1, Weapon x1 8924 | -3/Research | Garrison activated, responded to threat 9600 | -3/Research | Build established: Scavenger-Tank 9855 | -3/Research | Garrison activated, responded to threat 10010 | -3/Research | Spotted B-86 Titan 10363 | -3/Research | Cargo convoy interrupted 10365 | -3/Research | Spotted Striker 10366 | -3/Research | Spotted Striker 10371 | -3/Research | System corruption reached 10% 10393 | -3/Research | Destroyed Striker 10410 | -3/Research | Destroyed Striker 10449 | -3/Research | Destroyed 10 combat bots 10465 | -3/Research | Core integrity fell below 50% 10495 | -3/Research | Lost 34 parts (2p11n6u15w) 10512 | -3/Research | Discovered new exit (range 10) 10519 | -3/Research | Identified exit to Research 10519 | -3/Research | Entered another Research area 10519 | -2/Research | Evolved 2 slots: Power x1, Weapon x1 10655 | -2/Research | Build established: Mutant 10744 | -2/Research | Core integrity fell below 50% 10757 | -2/Research | Lost 3 parts (3u) 10789 | -2/Research | Core integrity fell below 20% 10810 | -2/Research | Destroyed by S-43 Plague with Heavy Machine Gun Last Messages --------------- 10726_ Imp. Signal Interpreter destroyed. 10745_ System corrupted: Component data lost. 10769_ ALERT: Rogue bot located, Programmers report to Research Zone 5A. 10775_ S-43 Plague destroyed. 10776_ Acquired Xenon Bombardment Thruster. 10779_ Acquired 34 matter. 10781_ Slug penetrates Wall. 10782_ Penetrated by Slug. 10782_ Xenon Bombardment Thruster destroyed. 10782_ Penetrated by Slug. 10783_ S-43 Plague destroyed. 10784_ Slug penetrates Wall. 10788_ Penetrated by Slug. 10788_ Xenon Bombardment Thruster destroyed. 10788_ Penetrated by Slug. 10797_ Sneak attack on U-05 Engineer. 10797_ U-05 Engineer destroyed. 10800_ Acquired 16 matter. 10806_ Sneak attack on U-05 Engineer. 10806_ U-05 Engineer destroyed. Map ----- +----------------------------------------------------+ | ?????????????????????????????????????????????????? | | ?????????????????????????????????????????????????? | | ?????????????????????????????????????????????????? | | ?????????????????????????????????????????????????? | | ?????????????????????????????????????????????????? | | ?????????????????????????????????????????????????? | | ?????????????????????????????????????????????????? | | ?????????????????????????????????????????????????? | | ?????????????????????????????????????????????????? | | ?????????????????????????????????????????????????? | | ?????????????????????????????????????????????????? | | ?????????????????????????????????????????????????? | | ?????????????????????????????????????????????????? | | ??????????? ?????????????????????????????????????? | | ??????????? ?????????????????????????????????????? | | ??????????? ?????????????????????????????????????? | | ??????????? ?????????????????????????????????????? | | ??????????? ?????????????????????????????????????? | | ??????????? ?????????????????????????????????????? | | ??????????? ?????????????????????????????????????? | | ??????????# #????????????????????????????????????? | | ?????????? #????????????????????????????????????? | | ??????????# #?????########???????????????????????? | | ??????????# #?????# #???????????????????????? | | ??????????# #?????# u |#########???????????????? | | ########### #?????# pss =@% k ????????? | | #######p #########???????????????? | | s/ #???????????????????????? | | ##+#### #???????????????????????? | | """"" # ??########???????????????????????? | | """"" # ?????????????????????????????????? | | "" F" # ????????????????????????????????? | | # =????????????????????????????????? | | #*! #???????????????????????????????? | | #*! #???????????????????????????????? | | #*! #???????????????????????????????? | | # #???????????????????????????????? | | #########????????????????????????????? | | +????????????????????????????? | | ####### #######????????????????????????????? | | ??????# #??????????????????????????????????? | | ??????# +??????????????????????????????????? | | ??????# #??????????????????????????????????? | | ??????# #??????????????????????????????????? | | ??????# #??????????????????????????????????? | | ??????# ##### #??????????????????????????????????? | | ??????# #???? #??????????????????????????????????? | | ??????# #????+#??????????????????????????????????? | | ??????# #????????????????????????????????????????? | | ??????# #????????????????????????????????????????? | +----------------------------------------------------+ Best States ------------- Heat Dissipation 75 Coolant Potential 80 Energy Generation 19 Energy Capacity 310 Matter Stores 300 Matter Capacity 300 Sight Range 21 Robot Scan Range 16 Terrain Scan Density 10 Armor Coverage 825 Propulsion Shielding 66 Weapon Shielding 66 Point Defense Rating 240 Phase Shifting 10 Evasion (%) 62 Targeting Accuracy 13 Recoil Reduction 9 Particle Charging 20 Kinecelleration 30 Offensive Hacking 10 Item Schematics ----------------- Adv. Melee Analysis Suite | -6/Zion | Archive Hvy. Shock Bomb Launcher | -6/Zion | Archive Imp. Heavy Armor Plating | -6/Zion | Archive Mass Driver | -6/Zion | Archive Arc Thrower | -6/Zion | Archive Imp. Weapon Cycler | -6/Zion | Archive Hvy. Machine Gun | -6/Zion | Archive Adv. Hardlight Generator | -6/Zion | Archive Dispersion Rifle | -6/Zion | Archive Hvy. Flak Cannon | -6/Zion | Archive Imp. Transmission Jammer | -6/Zion | Archive Fusion Compressor | -6/Zion | Archive KE Penetrator | -6/Zion | Archive Antigrav System | -6/Zion | Archive Mak. Hover Unit | -6/Zion | Archive Robot Schematics ------------------ R-10 Processor | -6/Zion | Archive G-50 Soldier | -6/Zion | Archive A-15 Conveyor | -6/Zion | Archive Fabricated ------------ Nothing Alien Tech Used ----------------- None Achievements -------------- More Dakka Please Tank Challenges ------------ None Game ------ Seed CentriumLegWell Manual? 0 Play Time 01:46:29 Cumulative 70.8 hours Start 2024.04.15 @ 23:12:47 End 2024.04.16 @ 00:58:01 Sessions 1 Manual Loads 0 Difficulty Rogue Special Mode None Game No. 37 Rogue 37 Adventurer 0 Explorer 0 Win Type - Total 3 Types 3/0/0/0/0/0/0/0/0 Lore% 39 Gallery% 39 Achievement% 40 Wizard Run 0 Options --------- Layout 0 ASCII 0 Keyboard 0 Movement Numpad Keybinds 0 Fullscreen 2 Font 18/SmallcapsGlow Map View 76x50 Zoom Use 0% Tactical HUD 1 Map Filters NONE Filters NONE Steam 1 RUN: 5a986e6b-19f7-4f5e-aad0-c03f2c92b3e2